fUSD/lending_fUSD_20240803
["ID","MTS","AMOUNT","RATE_DAILY","PERIOD"]
[333954420,1722647487664,-500.0,0.00017534,2]
[333954421,1722647487674,-500.0,0.00017534,2]
[333954422,1722647487685,-500.0,0.00017534,2]
[333954423,1722647487695,-1565.33,0.00017534,2]
[333954424,1722647487705,-500.0,0.00017534,2]
[333954425,1722647487715,-779.99,0.00017534,2]
[333954426,1722647487725,-514.71,0.00017534,2]
[333954427,1722647487735,-500.0,0.00017534,2]
[333954428,1722647487744,-500.0,0.00017534,2]
[333954429,1722647487753,-500.0,0.00017534,2]
[333954430,1722647487763,-500.0,0.00017534,2]
[333954431,1722647487772,-500.0,0.00017534,2]
[333954432,1722647487781,-500.0,0.00017534,2]
[333954433,1722647487790,-500.0,0.00017534,2]
[333954434,1722647487799,-500.0,0.00017534,2]
[333954435,1722647487812,-1051.99,0.00017534,2]
[333954436,1722647487821,-624.37,0.00017534,2]
[333954437,1722647487831,-1544.74,0.00017534,2]
[333954438,1722647487841,-1198.76,0.00017534,2]
[333954439,1722647487850,-531.94,0.00017534,2]
[333954440,1722647487860,-627.46,0.00017534,2]
[333954441,1722647487869,-554.57,0.00017534,2]
[333954442,1722647487879,-550.76,0.00017534,2]
[333954443,1722647487888,-765.73,0.00017534,2]
[333954444,1722647487898,-500.0,0.00017534,2]
[333954445,1722647487907,-181.7478687,0.00017534,2]
[333954446,1722647487917,-500.0,0.00017534,2]
[333954447,1722647487927,-500.0,0.00017534,2]
[333954448,1722647487936,-780.25,0.00017534,2]
[333954449,1722647487946,-1002.58,0.00017534,2]
[333954450,1722647487956,-566.42,0.00017534,2]
[333954451,1722647487965,-834.52,0.00017534,2]
[333954452,1722647487974,-500.0,0.00017534,2]
[333954453,1722647487984,-500.0,0.00017534,2]
[333954454,1722647487994,-500.0,0.00017534,2]
[333954455,1722647488003,-1771.58,0.00017534,2]
[333954456,1722647488013,-500.0,0.00017534,2]
[333954457,1722647488023,-500.0,0.00017534,2]
[333954458,1722647488032,-1283.32,0.00017534,2]
[333954459,1722647488042,-500.0,0.00017534,2]
[333954460,1722647488051,-970.33,0.00017534,2]
[333954461,1722647488064,-1495.26,0.00017534,2]
[333954462,1722647488074,-730.04,0.00017534,2]
[333954463,1722647488083,-500.0,0.00017534,2]
[333954464,1722647488093,-796.44,0.00017534,2]
[333954465,1722647488103,-500.0,0.00017534,2]
[333954466,1722647488113,-980.45,0.00017534,2]
[333954467,1722647488123,-718.77,0.00017534,2]
[333954468,1722647488133,-500.0,0.00017534,2]
[333954469,1722647488142,-500.0,0.00017534,2]
[333954470,1722647488152,-849.84,0.00017534,2]
[333954471,1722647488163,-1607.27,0.00017534,2]
[333954472,1722647488173,-803.99,0.00017534,2]
[333954473,1722647488183,-536.24,0.00017534,2]
[333954474,1722647488193,-1384.17,0.00017534,2]
[333954475,1722647488202,-500.0,0.00017534,2]
[333954476,1722647488212,-1438.68,0.00017534,2]
[333954477,1722647488221,-500.0,0.00017534,2]
[333954478,1722647488230,-500.0,0.00017534,2]
[333954479,1722647488240,-1360.28,0.00017534,2]
[333954480,1722647488249,-626.83,0.00017534,2]
[333954481,1722647488259,-500.0,0.00017534,2]
[333954482,1722647488268,-1882.71,0.00017534,2]
[333954483,1722647488277,-1965.3,0.00017534,2]
[333954484,1722647488287,-500.0,0.00017534,2]
[333954485,1722647488296,-500.0,0.00017534,2]
[333954486,1722647488311,-500.0,0.00017534,2]
[333954487,1722647488320,-1833.2,0.00017534,2]
[333954488,1722647488330,-534.98,0.00017534,2]
[333954489,1722647488339,-698.61,0.00017534,2]
[333954490,1722647488349,-500.0,0.00017534,2]
[333954491,1722647488358,-677.65,0.00017534,2]
[333954492,1722647488368,-745.35,0.00017534,2]
[333954493,1722647488377,-516.84,0.00017534,2]
[333954494,1722647488387,-983.96,0.00017534,2]
[333954495,1722647488396,-2041.37,0.00017534,2]
[333954496,1722647488405,-500.0,0.00017534,2]
[333954497,1722647488415,-817.11,0.00017534,2]
[333954498,1722647488425,-949.1,0.00017534,2]
[333954499,1722647488435,-908.73,0.00017534,2]
[333954500,1722647488445,-994.34,0.00017534,2]
[333954501,1722647488454,-500.0,0.00017534,2]
[333954502,1722647488464,-617.77,0.00017534,2]
[333954503,1722647488473,-1160.98,0.00017534,2]
[333954504,1722647488482,-788.77,0.00017534,2]
[333954505,1722647488491,-500.0,0.00017534,2]
[333954506,1722647488501,-1027.56,0.00017534,2]
[333954507,1722647488511,-500.0,0.00017534,2]
[333954508,1722647488521,-500.0,0.00017534,2]
[333954509,1722647488530,-938.54,0.00017534,2]
[333954510,1722647488540,-631.37,0.00017534,2]
[333954511,1722647488550,-646.62,0.00017534,2]
[333954512,1722647488565,-500.0,0.00017534,2]
[333954513,1722647488574,-1040.22,0.00017534,2]
[333954514,1722647488583,-500.0,0.00017534,2]
[333954515,1722647488593,-500.0,0.00017534,2]
[333954516,1722647488602,-879.59,0.00017534,2]
[333954517,1722647488612,-500.0,0.00017534,2]
[333954518,1722647488622,-500.0,0.00017534,2]
[333954519,1722647488631,-2033.69,0.00017534,2]
[333954520,1722647488642,-679.31,0.00017534,2]
[333954521,1722647488653,-704.43,0.00017534,2]
[333954522,1722647488664,-1561.0,0.00017534,2]
[333954523,1722647488673,-607.95,0.00017534,2]
[333954524,1722647488682,-1145.16,0.00017534,2]
[333954525,1722647488692,-500.0,0.00017534,2]
[333954526,1722647488701,-500.0,0.00017534,2]
[333954527,1722647488710,-500.0,0.00017534,2]
[333954528,1722647488720,-2342.19,0.00017534,2]
[333954529,1722647488730,-1000.0,0.00017534,2]
[333954530,1722647488739,-500.0,0.00017534,2]
[333954531,1722647488749,-500.0,0.00017534,2]
[333954532,1722647488759,-1439.6,0.00017534,2]
[333954533,1722647488768,-500.0,0.00017534,2]
[333954534,1722647488777,-2274.33,0.00017534,2]
[333954535,1722647488787,-500.0,0.00017534,2]
[333954536,1722647488797,-500.0,0.00017534,2]
[333954537,1722647488812,-932.05,0.00017534,2]
[333954538,1722647488821,-3059.5,0.00017534,2]
[333954539,1722647488830,-1748.51,0.00017534,2]
[333954540,1722647488839,-500.0,0.00017534,2]
[333954541,1722647488849,-1290.75,0.00017534,2]
[333954542,1722647488858,-500.0,0.00017534,2]
[333954543,1722647488867,-2385.67,0.00017534,2]
[333954544,1722647488877,-669.28,0.00017534,2]
[333954545,1722647488886,-726.17,0.00017534,2]
[333954546,1722647488895,-500.0,0.00017534,2]
[333954547,1722647488904,-500.0,0.00017534,2]
[333954548,1722647488913,-301.70435478,0.00017534,2]
[333954549,1722647488922,-961.26,0.00017534,2]
[333954550,1722647488931,-832.38,0.00017534,2]
[333954551,1722647488941,-500.0,0.00017534,2]
[333954552,1722647488950,-500.0,0.00017534,2]
[333954553,1722647488962,-1433.76,0.00017534,2]
[333954554,1722647488972,-2028.45,0.00017534,2]
[333954555,1722647488981,-400.0,0.00017534,2]
[333954556,1722647488992,-168.0,0.00017534,2]
[333954557,1722647489001,-500.0,0.00017534,2]
[333954558,1722647489010,-168.0,0.00017534,2]
[333954559,1722647489019,-500.0,0.00017534,2]
[333954560,1722647489029,-500.0,0.00017534,2]
[333954561,1722647489039,-1763.81,0.00017534,2]
[333954562,1722647489049,-795.67,0.00017534,2]
[333954563,1722647489065,-500.0,0.00017534,2]
[333954564,1722647489075,-168.0,0.00017534,2]
[333954565,1722647489084,-168.0,0.00017534,2]
[333954566,1722647489094,-683.41,0.00017534,2]
[333954567,1722647489104,-906.15,0.00017534,2]
[333954568,1722647489114,-606.24,0.00017534,2]
[333954569,1722647489123,-500.0,0.00017534,2]
[333954570,1722647489133,-515.81,0.00017534,2]
[333954571,1722647489143,-500.0,0.00017534,2]
[333954572,1722647489152,-705.07,0.00017534,2]
[333954573,1722647489162,-912.83,0.00017534,2]
[333954574,1722647489172,-500.0,0.00017534,2]
[333954575,1722647489182,-500.0,0.00017534,2]
[333954576,1722647489192,-810.2,0.00017534,2]
[333954577,1722647489202,-771.19,0.00017534,2]
[333954578,1722647489212,-832.95,0.00017534,2]
[333954579,1722647489221,-1366.9,0.00017534,2]
[333954580,1722647489231,-1288.69,0.00017534,2]
[333954581,1722647489240,-598.77,0.00017534,2]
[333954582,1722647489250,-241.23040864,0.00017534,2]
[333954583,1722647489259,-774.56,0.00017534,2]
[333954584,1722647489269,-500.0,0.00017534,2]
[333954585,1722647489279,-1935.6,0.00017534,2]
[333954586,1722647489288,-1172.01,0.00017534,2]
[333954587,1722647489298,-565.25,0.00017534,2]
[333954588,1722647489308,-918.19,0.00017534,2]
[333954589,1722647489317,-1189.31,0.00017534,2]
[333954590,1722647489327,-1005.63,0.00017534,2]
[333954591,1722647489336,-503.77,0.00017534,2]
[333954592,1722647489346,-663.27,0.00017534,2]
[333954593,1722647489355,-500.0,0.00017534,2]
[333954594,1722647489364,-1454.73,0.00017534,2]
[333954595,1722647489374,-500.0,0.00017534,2]
[333954596,1722647489383,-500.0,0.00017534,2]
[333954597,1722647489392,-684.9,0.00017534,2]
[333954598,1722647489402,-2087.28,0.00017534,2]
[333954599,1722647489411,-500.0,0.00017534,2]
[333954600,1722647489420,-2607.21,0.00017534,2]
[333954601,1722647489430,-500.0,0.00017534,2]
[333954602,1722647489440,-500.0,0.00017534,2]
[333954603,1722647489450,-500.0,0.00017534,2]
[333954604,1722647489459,-828.17,0.00017534,2]
[333954605,1722647489468,-650.1,0.00017534,2]
[333954606,1722647489478,-500.0,0.00017534,2]
[333954607,1722647489487,-565.68,0.00017534,2]
[333954608,1722647489497,-500.0,0.00017534,2]
[333954609,1722647489506,-500.0,0.00017534,2]
[333954610,1722647489515,-1183.47,0.00017534,2]
[333954611,1722647489524,-500.0,0.00017534,2]
[333954612,1722647489533,-1407.44,0.00017534,2]
[333954613,1722647489543,-500.0,0.00017534,2]
[333954614,1722647489552,-1400.8,0.00017534,2]
[333954615,1722647489561,-926.58,0.00017534,2]
[333954616,1722647489571,-2958.24,0.00017534,2]
[333954617,1722647489581,-1741.85,0.00017534,2]
[333954618,1722647489591,-549.11,0.00017534,2]
[333954619,1722647489601,-500.0,0.00017534,2]
[333954620,1722647489611,-500.0,0.00017534,2]
[333954621,1722647489621,-500.0,0.00017534,2]
[333954622,1722647489631,-644.6,0.00017534,2]
[333954623,1722647489641,-500.0,0.00017534,2]
[333954624,1722647489651,-1761.32,0.00017534,2]
[333954625,1722647489661,-555.77,0.00017534,2]
[333954626,1722647489671,-500.0,0.00017534,2]
[333954627,1722647489681,-1030.19,0.00017534,2]
[333954628,1722647489690,-623.03,0.00017534,2]
[333954629,1722647489700,-653.27,0.00017534,2]
[333954630,1722647489709,-500.0,0.00017534,2]
[333954631,1722647489719,-1401.49,0.00017534,2]
[333954632,1722647489729,-856.56,0.00017534,2]
[333954633,1722647489738,-1864.63,0.00017534,2]
[333954634,1722647489747,-773.66,0.00017534,2]
[333954635,1722647489757,-1713.19,0.00017534,2]
[333954636,1722647489766,-500.0,0.00017534,2]
[333954637,1722647489777,-500.0,0.00017534,2]
[333954638,1722647489786,-500.0,0.00017534,2]
[333954639,1722647489796,-500.0,0.00017534,2]
[333954640,1722647489805,-567.02,0.00017534,2]
[333954641,1722647489815,-500.0,0.00017534,2]
[333954642,1722647489825,-500.0,0.00017534,2]
[333954643,1722647489835,-500.0,0.00017534,2]
[333954644,1722647489845,-500.0,0.00017534,2]
[333954645,1722647489855,-586.63,0.00017534,2]
[333954646,1722647489864,-1147.14,0.00017534,2]
[333954647,1722647489874,-1597.42,0.00017534,2]
[333954648,1722647489883,-652.57,0.00017534,2]
[333954649,1722647489893,-1477.59,0.00017534,2]
[333954650,1722647489902,-500.0,0.00017534,2]
[333954651,1722647489912,-1700.69,0.00017534,2]
[333954652,1722647489921,-2624.25,0.00017534,2]
[333954653,1722647489931,-1857.95,0.00017534,2]
[333954654,1722647489940,-500.0,0.00017534,2]
[333954655,1722647489949,-500.0,0.00017534,2]
[333954656,1722647489959,-513.07,0.00017534,2]
[333954657,1722647489968,-500.0,0.00017534,2]
[333954658,1722647489978,-1663.75,0.00017534,2]
[333954659,1722647489987,-563.05,0.00017534,2]
[333954660,1722647489996,-500.0,0.00017534,2]
[333954661,1722647490006,-594.95,0.00017534,2]
[333954662,1722647490015,-2002.44,0.00017534,2]
[333954663,1722647490024,-1015.96,0.00017534,2]
[333954664,1722647490034,-581.11,0.00017534,2]
[333954665,1722647490043,-500.0,0.00017534,2]
[333954666,1722647490052,-500.0,0.00017534,2]
[333954667,1722647490075,-500.0,0.00017534,2]
[333954668,1722647490084,-920.01,0.00017534,2]
[333954669,1722647490094,-1492.16,0.00017534,2]
[333954670,1722647490106,-825.38,0.00017534,2]
[333954671,1722647490116,-561.01,0.00017534,2]
[333954672,1722647490126,-500.0,0.00017534,2]
[333954673,1722647490136,-500.0,0.00017534,2]
[333954674,1722647490146,-500.0,0.00017534,2]
[333954675,1722647490156,-3022.48,0.00017534,2]
[333954676,1722647490166,-576.03,0.00017534,2]
[333954677,1722647490176,-500.0,0.00017534,2]
[333954678,1722647490185,-665.88,0.00017534,2]
[333954679,1722647490196,-1046.0,0.00017534,2]
[333954680,1722647490205,-681.28,0.00017534,2]
[333954681,1722647490216,-840.81,0.00017534,2]
[333954682,1722647490226,-500.0,0.00017534,2]
[333954683,1722647490235,-602.34,0.00017534,2]
[333954684,1722647490245,-500.0,0.00017534,2]
[333954685,1722647490255,-1306.29,0.00017534,2]
[333954686,1722647490265,-1716.71,0.00017534,2]
[333954687,1722647490275,-813.31,0.00017534,2]
[333954688,1722647490285,-1068.19,0.00017534,2]
[333954689,1722647490295,-1552.94,0.00017534,2]
[333954690,1722647490304,-1371.86,0.00017534,2]
[333954691,1722647490314,-500.0,0.00017534,2]
[333954692,1722647490448,-2141.51,0.00017534,2]
[333954693,1722647490466,-867.29,0.00017534,2]
[333954694,1722647490476,-500.0,0.00017534,2]
[333954695,1722647490486,-500.0,0.00017534,2]
[333954696,1722647490496,-1437.46,0.00017534,2]
[333954697,1722647490505,-1093.12,0.00017534,2]
[333954698,1722647490515,-586.48,0.00017534,2]
[333954699,1722647490526,-500.0,0.00017534,2]
[333954700,1722647490535,-500.0,0.00017534,2]
[333954701,1722647490545,-579.49728696,0.00017534,2]
[333954702,1722647490555,-500.0,0.00017534,2]
[333954703,1722647490564,-1714.2,0.00017534,2]
[333954704,1722647490575,-947.26,0.00017534,2]
[333954705,1722647490584,-629.43,0.00017534,2]
[333954706,1722647490594,-500.0,0.00017534,2]
[333954707,1722647490604,-727.49,0.00017534,2]
[333954708,1722647490614,-648.90810513,0.00017534,2]
[333954709,1722647490624,-1562.22,0.00017534,2]
[333954710,1722647490635,-500.0,0.00017534,2]
[333954711,1722647490644,-500.0,0.00017534,2]
[333954712,1722647490655,-500.0,0.00017534,2]
[333954713,1722647490665,-958.98,0.00017534,2]
[333954714,1722647490675,-655.79,0.00017534,2]
[333954715,1722647490685,-1253.89,0.00017534,2]
[333954716,1722647490695,-2180.77,0.00017534,2]
[333954717,1722647490705,-640.36,0.00017534,2]
[333954718,1722647490715,-1115.77,0.00017534,2]
[333954719,1722647490727,-1553.05,0.00017534,2]
[333954720,1722647490738,-505.21,0.00017534,2]
[333954721,1722647490748,-500.0,0.00017534,2]
[333954722,1722647490758,-2059.23,0.00017534,2]
[333954723,1722647490768,-500.0,0.00017534,2]
[333954724,1722647490778,-1072.65,0.00017534,2]
[333954725,1722647490788,-1534.24,0.00017534,2]
[333954726,1722647490798,-2075.3,0.00017534,2]
[333954727,1722647490807,-508.12,0.00017534,2]
[333954728,1722647490817,-1798.94,0.00017534,2]
[333954729,1722647490828,-709.58,0.00017534,2]
[333954730,1722647490837,-500.0,0.00017534,2]
[333954731,1722647490847,-500.0,0.00017534,2]
[333954732,1722647490858,-1469.89,0.00017534,2]
[333954733,1722647490867,-500.0,0.00017534,2]
[333954734,1722647490878,-1078.49,0.00017534,2]
[333954735,1722647490888,-500.0,0.00017534,2]
[333954736,1722647490898,-500.0,0.00017534,2]
[333954737,1722647490908,-2066.04,0.00017534,2]
[333954738,1722647490918,-627.03,0.00017534,2]
[333954739,1722647490929,-1639.27,0.00017534,2]
[333954740,1722647490939,-1123.82,0.00017534,2]
[333954741,1722647490949,-500.0,0.00017534,2]
[333954742,1722647490960,-500.0,0.00017534,2]
[333954743,1722647490970,-1484.4,0.00017534,2]
[333954744,1722647490980,-558.83,0.00017534,2]
[333954745,1722647490991,-500.0,0.00017534,2]
[333954746,1722647491000,-500.0,0.00017534,2]
[333954747,1722647491010,-693.84,0.00017534,2]
[333954748,1722647491020,-500.0,0.00017534,2]
[333954749,1722647491030,-591.8,0.00017534,2]
[333954750,1722647491040,-500.9,0.00017534,2]
[333954751,1722647491049,-500.0,0.00017534,2]
[333954752,1722647491072,-689.17,0.00017534,2]
[333954753,1722647491083,-913.67,0.00017534,2]
[333954754,1722647491092,-1977.53,0.00017534,2]
[333954755,1722647491102,-500.0,0.00017534,2]
[333954756,1722647491112,-857.6,0.00017534,2]
[333954757,1722647491122,-696.45,0.00017534,2]
[333954758,1722647491132,-919.6,0.00017534,2]
[333954759,1722647491142,-500.0,0.00017534,2]
[333954760,1722647491152,-3040.78,0.00017534,2]
[333954761,1722647491162,-500.0,0.00017534,2]
[333954762,1722647491173,-701.09,0.00017534,2]
[333954763,1722647491183,-675.52,0.00017534,2]
[333954764,1722647491193,-1918.88,0.00017534,2]
[333954765,1722647491203,-987.48,0.00017534,2]
[333954766,1722647491212,-502.71,0.00017534,2]
[333954767,1722647491223,-500.0,0.00017534,2]
[333954768,1722647491233,-500.0,0.00017534,2]
[333954769,1722647491243,-1155.84,0.00017534,2]
[333954770,1722647491253,-236.138539,0.00017534,2]
[333954771,1722647491262,-1534.03,0.00017534,2]
[333954772,1722647491272,-500.0,0.00017534,2]
[333954773,1722647491282,-236.138547,0.00017534,2]
[333954774,1722647491291,-1587.45,0.00017534,2]
[333954775,1722647491301,-1125.86,0.00017534,2]
[333954776,1722647491311,-610.06,0.00017534,2]
[333954777,1722647491321,-2209.02,0.00017534,2]
[333954778,1722647491331,-925.28,0.00017534,2]
[333954779,1722647491342,-500.0,0.00017534,2]
[333954780,1722647491353,-614.4,0.00017534,2]
[333954781,1722647491363,-500.0,0.00017534,2]
[333954782,1722647491374,-542.45,0.00017534,2]
[333954783,1722647491384,-500.0,0.00017534,2]
[333954784,1722647491394,-1314.49,0.00017534,2]
[333954785,1722647491404,-500.0,0.00017534,2]
[333954786,1722647491413,-1396.12,0.00017534,2]
[333954787,1722647491423,-2047.15,0.00017534,2]
[333954788,1722647491433,-500.0,0.00017534,2]
[333954789,1722647491443,-928.42,0.00017534,2]
[333954790,1722647491453,-517.1,0.00017534,2]
[333954791,1722647491463,-692.78,0.00017534,2]
[333954792,1722647491473,-829.09,0.00017534,2]
[333954793,1722647491483,-500.0,0.00017534,2]
[333954794,1722647491492,-500.0,0.00017534,2]
[333954795,1722647491503,-528.7,0.00017534,2]
[333954796,1722647491512,-643.87,0.00017534,2]
[333954797,1722647491522,-886.88,0.00017534,2]
[333954798,1722647491532,-500.0,0.00017534,2]
[333954799,1722647491542,-500.0,0.00017534,2]
[333954800,1722647491552,-527.3,0.00017534,2]
[333954801,1722647491562,-1081.12,0.00017534,2]
[333954802,1722647491572,-1340.52,0.00017534,2]
[333954803,1722647491582,-2809.72,0.00017534,2]
[333954804,1722647491592,-616.35,0.00017534,2]
[333954805,1722647491602,-500.0,0.00017534,2]
[333954806,1722647491612,-500.0,0.00017534,2]
[333954807,1722647491622,-500.0,0.00017534,2]
[333954808,1722647491632,-1117.08,0.00017534,2]
[333954809,1722647491642,-500.0,0.00017534,2]
[333954810,1722647491653,-831.2,0.00017534,2]
[333954811,1722647491662,-694.28,0.00017534,2]
[333954812,1722647491672,-2040.07,0.00017534,2]
[333954813,1722647491682,-500.0,0.00017534,2]
[333954814,1722647491692,-696.12,0.00017534,2]
[333954815,1722647491703,-500.0,0.00017534,2]
[333954816,1722647491712,-526.1427302,0.00017534,2]
[333954817,1722647491723,-500.0,0.00017534,2]
[333954818,1722647491733,-647.36,0.00017534,2]
[333954819,1722647491743,-979.51,0.00017534,2]
[333954820,1722647491753,-617.0,0.00017534,2]
[333954821,1722647491763,-1236.76,0.00017534,2]
[333954822,1722647491774,-500.0,0.00017534,2]
[333954823,1722647491784,-500.0,0.00017534,2]
[333954824,1722647491795,-500.0,0.00017534,2]
[333954825,1722647491806,-547.13,0.00017534,2]
[333954826,1722647491816,-975.08,0.00017534,2]
[333954827,1722647491827,-744.04,0.00017534,2]
[333954828,1722647491837,-3174.03,0.00017534,2]
[333954829,1722647491847,-200.0,0.00017534,2]
[333954830,1722647491857,-514.43,0.00017534,2]
[333954831,1722647491868,-1200.72,0.00017534,2]
[333954832,1722647491879,-1283.12,0.00017534,2]
[333954833,1722647491889,-685.66,0.00017534,2]
[333954834,1722647491899,-1555.42,0.00017534,2]
[333954835,1722647491910,-500.0,0.00017534,2]
[333954836,1722647491921,-500.0,0.00017534,2]
[333954837,1722647491932,-617.53,0.00017534,2]
[333954838,1722647491942,-680.72,0.00017534,2]
[333954839,1722647491952,-500.0,0.00017534,2]
[333954840,1722647491962,-500.0,0.00017534,2]
[333954841,1722647491973,-1259.58,0.00017534,2]
[333954842,1722647491984,-500.0,0.00017534,2]
[333954843,1722647491994,-833.03,0.00017534,2]
[333954844,1722647492004,-579.2,0.00017534,2]
[333954845,1722647492014,-500.0,0.00017534,2]
[333954846,1722647492024,-500.0,0.00017534,2]
[333954847,1722647492035,-1915.2,0.00017534,2]
[333954848,1722647492045,-500.0,0.00017534,2]
[333954849,1722647492055,-5606.39,0.00017534,2]
[333954850,1722647492082,-1715.5,0.00017534,2]
[333954851,1722647492093,-542.82,0.00017534,2]
[333954852,1722647492103,-636.31,0.00017534,2]
[333954853,1722647492113,-1868.93,0.00017534,2]
[333954854,1722647492124,-1157.75,0.00017534,2]
[333954855,1722647492134,-1587.1,0.00017534,2]
[333954856,1722647492144,-500.0,0.00017534,2]
[333954857,1722647492154,-500.0,0.00017534,2]
[333954858,1722647492164,-1201.0,0.00017534,2]
[333954859,1722647492174,-500.0,0.00017534,2]
[333954860,1722647492184,-2803.71,0.00017534,2]
[333954861,1722647492193,-500.0,0.00017534,2]
[333954862,1722647492203,-500.0,0.00017534,2]
[333954863,1722647492214,-1143.67,0.00017534,2]
[333954864,1722647492225,-500.0,0.00017534,2]
[333954865,1722647492235,-151.0,0.00017534,2]
[333954866,1722647492245,-1648.14,0.00017534,2]
[333954867,1722647492256,-633.65,0.00017534,2]
[333954868,1722647492266,-772.72,0.00017534,2]
[333954869,1722647492276,-500.0,0.00017534,2]
[333954870,1722647492286,-2184.3,0.00017534,2]
[333954871,1722647492295,-710.47,0.00017534,2]
[333954872,1722647492305,-6078.62,0.00017534,2]
[333954873,1722647492318,-3202.51,0.00017534,2]
[333954874,1722647492327,-1472.4,0.00017534,2]
[333954875,1722647492338,-906.39,0.00017534,2]
[333954876,1722647492348,-1031.13,0.00017534,2]
[333954877,1722647492358,-1337.03,0.00017534,2]
[333954878,1722647492368,-500.0,0.00017534,2]
[333954879,1722647492377,-500.0,0.00017534,2]
[333954880,1722647492389,-500.0,0.00017534,2]
[333954881,1722647492398,-649.37394251,0.00017534,2]
[333954882,1722647492408,-565.98,0.00017534,2]
[333954883,1722647492418,-9263.64,0.00017534,2]
[333954884,1722647492429,-1157.0,0.00017534,2]
[333954885,1722647492440,-952.39,0.00017534,2]
[333954886,1722647492449,-3020.59,0.00017534,2]
[333954887,1722647492459,-894.13,0.00017534,2]
[333954888,1722647492468,-2366.13,0.00017534,2]
[333954889,1722647492478,-500.0,0.00017534,2]
[333954890,1722647492488,-1873.68,0.00017534,2]
[333954891,1722647492497,-742.15,0.00017534,2]
[333954892,1722647492507,-5947.41,0.00017534,2]
[333954893,1722647492516,-1057.78,0.00017534,2]
[333954894,1722647492525,-500.0,0.00017534,2]
[333954895,1722647492535,-645.67794514,0.00017534,2]
[333954896,1722647492545,-1311.05,0.00017534,2]
[333954897,1722647492556,-665.43,0.00017534,2]
[333954898,1722647492565,-507.04,0.00017534,2]
[333954899,1722647492574,-1090.99,0.00017534,2]
[333954900,1722647492584,-9588.19,0.00017534,2]
[333954901,1722647492594,-2382.09,0.00017534,2]
[333954902,1722647492603,-2628.5,0.00017534,2]
[333954903,1722647492612,-1947.62,0.00017534,2]
[333954904,1722647492621,-500.0,0.00017534,2]
[333954905,1722647492631,-4884.78,0.00017534,2]
[333954906,1722647492645,-151.0,0.00017534,2]
[333954907,1722647492655,-500.0,0.00017534,2]
[333954908,1722647492664,-7735.99,0.00017534,2]
[333954909,1722647492674,-22174.14,0.00017534,2]
[333954910,1722647492683,-1016.1,0.00017534,2]
[333954911,1722647493032,-500.0,0.00017534,2]
[333954912,1722647493045,-508.26,0.00017534,2]
[333954913,1722647493055,-500.0,0.00017534,2]
[333954914,1722647493066,-1531.54,0.00017534,2]
[333954915,1722647493092,-500.0,0.00017534,2]
[333954916,1722647493103,-728.04,0.00017534,2]
[333954917,1722647493114,-612.33,0.00017534,2]
[333954918,1722647493125,-1756.95,0.00017534,2]
[333954919,1722647493136,-843.99,0.00017534,2]